fUSD/lending_fUSD_20240422
["ID","MTS","AMOUNT","RATE_DAILY","PERIOD"]
[323188956,1713796246546,-4397.93,0.00013698,2]
[323188958,1713796246555,-574.69,0.00013698,2]
[323188960,1713796246565,-861.16,0.00013698,2]
[323188962,1713796246576,-500.0,0.00013698,2]
[323188963,1713796246585,-500.0,0.00013698,2]
[323188964,1713796246594,-500.0,0.00013698,2]
[323188965,1713796246604,-500.0,0.00013698,2]
[323188966,1713796246615,-500.0,0.00013698,2]
[323188967,1713796246624,-1590.94,0.00013698,2]
[323188968,1713796246634,-500.0,0.00013698,2]
[323188969,1713796246643,-500.0,0.00013698,2]
[323188970,1713796246652,-500.0,0.00013698,2]
[323188971,1713796246662,-500.0,0.00013698,2]
[323188972,1713796246671,-704.51,0.00013698,2]
[323188973,1713796246682,-500.0,0.00013698,2]
[323188974,1713796246693,-3953.63,0.00013698,2]
[323188975,1713796246703,-674.75,0.00013698,2]
[323188976,1713796246714,-500.69,0.00013698,2]
[323188977,1713796246723,-1188.11,0.00013698,2]
[323188978,1713796246733,-628.4,0.00013698,2]
[323188979,1713796246742,-1538.21,0.00013698,2]
[323188980,1713796246752,-2466.06,0.00013698,2]
[323188981,1713796246762,-500.0,0.00013698,2]
[323188982,1713796246771,-500.0,0.00013698,2]
[323188983,1713796246780,-500.0,0.00013698,2]
[323188984,1713796246790,-907.44,0.00013698,2]
[323188985,1713796246798,-500.0,0.00013698,2]
[323188986,1713796246808,-500.0,0.00013698,2]
[323188987,1713796246817,-500.0,0.00013698,2]
[323188988,1713796246827,-926.87,0.00013698,2]
[323188989,1713796246836,-500.0,0.00013698,2]
[323188990,1713796246845,-500.0,0.00013698,2]
[323188991,1713796246855,-500.0,0.00013698,2]
[323188992,1713796246864,-597.29,0.00013698,2]
[323188993,1713796246873,-574.67,0.00013698,2]
[323188994,1713796246883,-500.0,0.00013698,2]
[323188995,1713796246892,-614.63,0.00013698,2]
[323188996,1713796246901,-591.26885321,0.00013698,2]
[323188997,1713796246911,-500.0,0.00013698,2]
[323188998,1713796246920,-513.06,0.00013698,2]
[323188999,1713796246930,-1718.83,0.00013698,2]
[323189000,1713796246939,-500.0,0.00013698,2]
[323189001,1713796246949,-651.82,0.00013698,2]
[323189002,1713796246959,-644.03,0.00013698,2]
[323189003,1713796246968,-1328.79,0.00013698,2]
[323189004,1713796246979,-1284.2,0.00013698,2]
[323189005,1713796246990,-366.04710435,0.00013698,2]
[323189006,1713796247001,-500.0,0.00013698,2]
[323189007,1713796247011,-500.0,0.00013698,2]
[323189008,1713796247021,-826.87,0.00013698,2]
[323189009,1713796247031,-500.0,0.00013698,2]
[323189010,1713796247040,-830.48,0.00013698,2]
[323189011,1713796247050,-775.83,0.00013698,2]
[323189012,1713796247059,-500.0,0.00013698,2]
[323189013,1713796247068,-718.61,0.00013698,2]
[323189014,1713796247079,-500.0,0.00013698,2]
[323189015,1713796247089,-500.0,0.00013698,2]
[323189016,1713796247098,-2649.22,0.00013698,2]
[323189017,1713796247108,-500.0,0.00013698,2]
[323189018,1713796247117,-849.84,0.00013698,2]
[323189019,1713796247127,-3835.25,0.00013698,2]
[323189020,1713796247136,-477.55790874,0.00013698,2]
[323189021,1713796247146,-500.0,0.00013698,2]
[323189022,1713796247156,-840.73,0.00013698,2]
[323189023,1713796247165,-500.0,0.00013698,2]
[323189024,1713796247175,-500.0,0.00013698,2]
[323189025,1713796247184,-1375.03,0.00013698,2]
[323189026,1713796247195,-949.26,0.00013698,2]
[323189027,1713796247207,-500.0,0.00013698,2]
[323189028,1713796247217,-500.0,0.00013698,2]
[323189029,1713796247226,-500.0,0.00013698,2]
[323189030,1713796247237,-500.0,0.00013698,2]
[323189031,1713796247246,-1577.76,0.00013698,2]
[323189032,1713796247257,-2083.59,0.00013698,2]
[323189033,1713796247266,-960.92,0.00013698,2]
[323189034,1713796247278,-1473.13,0.00013698,2]
[323189035,1713796247288,-500.0,0.00013698,2]
[323189036,1713796247298,-784.74,0.00013698,2]
[323189037,1713796247309,-500.0,0.00013698,2]
[323189038,1713796247319,-1422.48,0.00013698,2]
[323189039,1713796247332,-500.0,0.00013698,2]
[323189040,1713796247341,-500.0,0.00013698,2]
[323189041,1713796247350,-425.66177434,0.00013698,2]
[323189042,1713796247360,-500.0,0.00013698,2]
[323189043,1713796247370,-500.0,0.00013698,2]
[323189044,1713796247379,-500.0,0.00013698,2]
[323189045,1713796247389,-500.0,0.00013698,2]
[323189046,1713796247400,-500.0,0.00013698,2]
[323189047,1713796247409,-720.79,0.00013698,2]
[323189048,1713796247419,-500.0,0.00013698,2]
[323189049,1713796247429,-500.0,0.00013698,2]
[323189050,1713796247438,-678.43,0.00013698,2]
[323189051,1713796247447,-1182.1,0.00013698,2]
[323189052,1713796247457,-500.0,0.00013698,2]
[323189053,1713796247466,-500.0,0.00013698,2]
[323189054,1713796247476,-503.15,0.00013698,2]
[323189055,1713796247485,-500.0,0.00013698,2]
[323189056,1713796247495,-500.0,0.00013698,2]
[323189057,1713796247505,-4168.48,0.00013698,2]
[323189058,1713796247515,-979.94,0.00013698,2]
[323189059,1713796247524,-774.02,0.00013698,2]
[323189060,1713796247534,-2335.81,0.00013698,2]
[323189061,1713796247543,-500.0,0.00013698,2]
[323189062,1713796247554,-500.0,0.00013698,2]
[323189063,1713796247564,-500.0,0.00013698,2]
[323189064,1713796247575,-500.0,0.00013698,2]
[323189065,1713796247585,-500.0,0.00013698,2]
[323189066,1713796247594,-500.0,0.00013698,2]
[323189067,1713796247603,-838.49,0.00013698,2]
[323189068,1713796247613,-645.86,0.00013698,2]
[323189069,1713796247622,-500.0,0.00013698,2]
[323189070,1713796247632,-1610.37,0.00013698,2]
[323189071,1713796247641,-500.0,0.00013698,2]
[323189072,1713796247650,-500.0,0.00013698,2]
[323189073,1713796247660,-2717.72,0.00013698,2]
[323189074,1713796247669,-1109.28,0.00013698,2]
[323189075,1713796247679,-712.6,0.00013698,2]
[323189076,1713796247687,-917.72,0.00013698,2]
[323189077,1713796247697,-595.52,0.00013698,2]
[323189078,1713796247706,-500.0,0.00013698,2]
[323189079,1713796247715,-500.0,0.00013698,2]
[323189080,1713796247724,-500.0,0.00013698,2]
[323189081,1713796247734,-1690.94,0.00013698,2]
[323189082,1713796247743,-500.0,0.00013698,2]
[323189083,1713796247752,-858.75,0.00013698,2]
[323189084,1713796247761,-500.0,0.00013698,2]
[323189085,1713796247770,-804.76,0.00013698,2]
[323189086,1713796247779,-500.0,0.00013698,2]
[323189087,1713796247788,-4353.22,0.00013698,2]
[323189088,1713796247798,-1491.46,0.00013698,2]
[323189089,1713796247807,-678.36,0.00013698,2]
[323189090,1713796247816,-511.56,0.00013698,2]
[323189091,1713796247826,-500.0,0.00013698,2]
[323189092,1713796247836,-910.0,0.00013698,2]
[323189093,1713796247845,-817.33,0.00013698,2]
[323189094,1713796247854,-500.0,0.00013698,2]
[323189095,1713796247864,-1573.33,0.00013698,2]
[323189096,1713796247873,-500.0,0.00013698,2]
[323189097,1713796247882,-760.59,0.00013698,2]
[323189098,1713796247983,-1837.04,0.00013698,2]
[323189099,1713796247992,-500.0,0.00013698,2]
[323189100,1713796248002,-867.08,0.00013698,2]
[323189101,1713796248012,-739.97,0.00013698,2]
[323189102,1713796248021,-2518.54,0.00013698,2]
[323189103,1713796248030,-7319.69,0.00013698,2]
[323189104,1713796248040,-598.25,0.00013698,2]
[323189105,1713796248049,-500.0,0.00013698,2]
[323189106,1713796248058,-841.11,0.00013698,2]
[323189107,1713796248067,-9643.18,0.00013698,2]
[323189108,1713796248080,-500.0,0.00013698,2]
[323189109,1713796248090,-1881.87,0.00013698,2]
[323189110,1713796248098,-1972.22,0.00013698,2]
[323189111,1713796248107,-685.58,0.00013698,2]
[323189112,1713796248115,-500.0,0.00013698,2]
[323189113,1713796248124,-500.0,0.00013698,2]
[323189114,1713796248134,-525.53,0.00013698,2]
[323189115,1713796248143,-1667.13,0.00013698,2]
[323189116,1713796248152,-500.0,0.00013698,2]
[323189117,1713796248161,-762.16,0.00013698,2]
[323189118,1713796248171,-500.0,0.00013698,2]
[323189119,1713796248180,-1360.28,0.00013698,2]
[323189120,1713796248190,-500.0,0.00013698,2]
[323189121,1713796248202,-3934.69,0.00013698,2]
[323189122,1713796248211,-3033.53,0.00013698,2]
[323189123,1713796248220,-867.62,0.00013698,2]
[323189124,1713796248229,-874.55,0.00013698,2]
[323189125,1713796248239,-500.0,0.00013698,2]
[323189126,1713796248247,-1701.66,0.00013698,2]
[323189127,1713796248257,-582.31,0.00013698,2]
[323189128,1713796248266,-836.01,0.00013698,2]
[323189129,1713796248276,-500.0,0.00013698,2]
[323189130,1713796248285,-640.01,0.00013698,2]
[323189131,1713796248295,-500.0,0.00013698,2]
[323189132,1713796248303,-2028.99,0.00013698,2]
[323189133,1713796248312,-500.0,0.00013698,2]
[323189134,1713796248321,-2079.75,0.00013698,2]
[323189135,1713796248333,-500.0,0.00013698,2]
[323189136,1713796248342,-500.0,0.00013698,2]
[323189137,1713796248351,-500.0,0.00013698,2]
[323189138,1713796248361,-500.0,0.00013698,2]
[323189139,1713796248370,-501.03,0.00013698,2]
[323189140,1713796248379,-1254.12,0.00013698,2]
[323189141,1713796248388,-1257.9,0.00013698,2]
[323189142,1713796248398,-500.0,0.00013698,2]
[323189143,1713796248407,-578.47,0.00013698,2]
[323189144,1713796248417,-3678.63,0.00013698,2]
[323189145,1713796248427,-20677.34,0.00013698,2]
[323189146,1713796248436,-500.0,0.00013698,2]
[323189147,1713796248446,-500.0,0.00013698,2]
[323189148,1713796248457,-1619.41,0.00013698,2]
[323189149,1713796248466,-715.33,0.00013698,2]
[323189150,1713796248475,-1480.05,0.00013698,2]
[323189151,1713796248485,-3499.34,0.00013698,2]
[323189152,1713796248494,-4672.77,0.00013698,2]
[323189153,1713796248506,-4218.59,0.00013698,2]
[323189154,1713796248515,-774.1,0.00013698,2]
[323189155,1713796248526,-1691.05,0.00013698,2]
[323189156,1713796248535,-500.0,0.00013698,2]
[323189157,1713796248545,-500.0,0.00013698,2]
[323189158,1713796248554,-2819.73,0.00013698,2]
[323189159,1713796248565,-904.51,0.00013698,2]
[323189160,1713796248575,-1057.16,0.00013698,2]
[323189161,1713796248584,-500.0,0.00013698,2]
[323189162,1713796248593,-770.66,0.00013698,2]
[323189163,1713796248602,-500.0,0.00013698,2]
[323189164,1713796248612,-500.0,0.00013698,2]
[323189165,1713796248621,-500.0,0.00013698,2]
[323189166,1713796248630,-827.58,0.00013698,2]
[323189167,1713796248639,-12607.51,0.00013698,2]
[323189168,1713796248649,-500.0,0.00013698,2]
[323189169,1713796248658,-585.28,0.00013698,2]
[323189170,1713796248667,-500.0,0.00013698,2]
[323189171,1713796248676,-500.0,0.00013698,2]
[323189172,1713796248686,-64079.4,0.00013698,2]
[323189173,1713796248696,-30713.2,0.00013698,2]
[323189174,1713796248706,-1030.72,0.00013698,2]
[323189175,1713796248715,-2774.04,0.00013698,2]
[323189176,1713796248725,-5266.76,0.00013698,2]
[323189177,1713796248734,-768.57,0.00013698,2]
[323189178,1713796248743,-500.0,0.00013698,2]
[323189179,1713796248754,-2305.23,0.00013698,2]
[323189180,1713796248764,-500.0,0.00013698,2]
[323189181,1713796248774,-500.0,0.00013698,2]
[323189182,1713796248784,-500.0,0.00013698,2]
[323189183,1713796248794,-802.57,0.00013698,2]
[323189184,1713796248803,-502.95,0.00013698,2]
[323189185,1713796248814,-783.88,0.00013698,2]
[323189186,1713796248824,-500.0,0.00013698,2]
[323189187,1713796248834,-6594.55,0.00013698,2]
[323189188,1713796248842,-500.0,0.00013698,2]
[323189189,1713796248851,-2757.3,0.00013698,2]
[323189190,1713796248860,-18405.76,0.00013698,2]
[323189191,1713796248869,-1684.44,0.00013698,2]
[323189192,1713796248879,-1883.56,0.00013698,2]
[323189193,1713796248888,-500.0,0.00013698,2]
[323189194,1713796248897,-2023.4,0.00013698,2]
[323189195,1713796248906,-806.48,0.00013698,2]
[323189196,1713796248916,-6388.96,0.00013698,2]
[323189197,1713796248925,-500.0,0.00013698,2]
[323189198,1713796248934,-1861.99,0.00013698,2]
[323189199,1713796248943,-590.32,0.00013698,2]
[323189200,1713796248953,-10671.09,0.00013698,2]
[323189201,1713796248964,-524.09,0.00013698,2]
[323189202,1713796248974,-500.0,0.00013698,2]
[323189203,1713796248983,-500.0,0.00013698,2]
[323189204,1713796248993,-500.0,0.00013698,2]
[323189205,1713796249002,-417.39335395,0.00013698,2]
[323189206,1713796249011,-889.65,0.00013698,2]
[323189207,1713796249020,-1486.8,0.00013698,2]
[323189208,1713796249030,-5206.09,0.00013698,2]
[323189209,1713796249040,-3872.24,0.00013698,2]
[323189210,1713796249049,-500.0,0.00013698,2]
[323189211,1713796249059,-500.0,0.00013698,2]
[323189212,1713796249068,-500.0,0.00013698,2]
[323189213,1713796249079,-5481.61,0.00013698,2]
[323189214,1713796249088,-2923.76,0.00013698,2]
[323189215,1713796249098,-1895.36,0.00013698,2]
[323189216,1713796249106,-500.0,0.00013698,2]
[323189217,1713796249116,-500.0,0.00013698,2]
[323189218,1713796249125,-1512.94,0.00013698,2]
[323189219,1713796249134,-966.57,0.00013698,2]
[323189220,1713796249144,-500.0,0.00013698,2]
[323189221,1713796249153,-1703.53,0.00013698,2]
[323189222,1713796249162,-500.0,0.00013698,2]
[323189223,1713796249172,-1642.73,0.00013698,2]
[323189224,1713796249180,-500.0,0.00013698,2]
[323189225,1713796249190,-757.47,0.00013698,2]
[323189226,1713796249201,-10148.01,0.00013698,2]
[323189227,1713796249210,-5166.1,0.00013698,2]
[323189228,1713796249220,-9066.93,0.00013698,2]
[323189229,1713796249229,-5596.59,0.00013698,2]
[323189230,1713796249238,-6127.2,0.00013698,2]
[323189231,1713796249247,-500.0,0.00013698,2]
[323189232,1713796249256,-958.4,0.00013698,2]
[323189233,1713796249265,-500.0,0.00013698,2]
[323189234,1713796249275,-500.0,0.00013698,2]
[323189235,1713796249284,-500.0,0.00013698,2]
[323189236,1713796249293,-500.0,0.00013698,2]
[323189237,1713796249302,-500.0,0.00013698,2]
[323189238,1713796249311,-2454.92,0.00013698,2]
[323189239,1713796249320,-500.0,0.00013698,2]
[323189240,1713796249330,-3312.95,0.00013698,2]
[323189241,1713796249340,-4894.1,0.00013698,2]
[323189242,1713796249348,-33144.59,0.00013698,2]
[323189243,1713796249358,-500.0,0.00013698,2]
[323189244,1713796249366,-886.92,0.00013698,2]
[323189245,1713796249376,-16459.49,0.00013698,2]
[323189246,1713796249385,-500.0,0.00013698,2]
[323189247,1713796249394,-500.0,0.00013698,2]
[323189248,1713796249403,-500.0,0.00013698,2]
[323189249,1713796249412,-1303.75,0.00013698,2]
[323189250,1713796249421,-2339.33,0.00013698,2]
[323189251,1713796249431,-2063.1,0.00013698,2]
[323189252,1713796249440,-7051.53,0.00013698,2]
[323189253,1713796249448,-616.48,0.00013698,2]
[323189254,1713796249458,-500.0,0.00013698,2]
[323189255,1713796249467,-563.99,0.00013698,2]
[323189256,1713796249476,-5734.14,0.00013698,2]
[323189257,1713796249485,-1012.61,0.00013698,2]
[323189258,1713796249495,-500.0,0.00013698,2]
[323189259,1713796249503,-4385.44,0.00013698,2]
[323189260,1713796249513,-5897.0,0.00013698,2]
[323189261,1713796249522,-1364.92,0.00013698,2]
[323189262,1713796249532,-500.0,0.00013698,2]
[323189263,1713796249542,-530.12,0.00013698,2]
[323189264,1713796249550,-502.36,0.00013698,2]
[323189265,1713796249559,-500.0,0.00013698,2]
[323189266,1713796249568,-500.0,0.00013698,2]
[323189267,1713796249578,-1238.2,0.00013698,2]
[323189268,1713796249587,-4401.22,0.00013698,2]
[323189269,1713796249597,-1077.41,0.00013698,2]
[323189270,1713796249606,-4757.94,0.00013698,2]
[323189271,1713796249615,-587.0,0.00013698,2]
[323189272,1713796249624,-508.47,0.00013698,2]
[323189273,1713796249633,-773.32,0.00013698,2]
[323189274,1713796249642,-500.0,0.00013698,2]
[323189275,1713796249651,-2910.25,0.00013698,2]
[323189276,1713796249661,-78690.41,0.00013698,2]
[323189277,1713796249670,-13778.22,0.00013698,2]
[323189278,1713796249680,-500.0,0.00013698,2]
[323189279,1713796249690,-9829.18,0.00013698,2]
[323189280,1713796249699,-3045.01,0.00013698,2]
[323189281,1713796249710,-685.07,0.00013698,2]
[323189282,1713796249719,-500.0,0.00013698,2]
[323189283,1713796249728,-500.0,0.00013698,2]
[323189284,1713796249739,-500.0,0.00013698,2]
[323189285,1713796249748,-1762.96,0.00013698,2]
[323189286,1713796249758,-1317.15,0.00013698,2]
[323189287,1713796249768,-1578.34,0.00013698,2]
[323189288,1713796249777,-500.0,0.00013698,2]
[323189289,1713796249786,-739.2,0.00013698,2]
[323189290,1713796249795,-1630.63,0.00013698,2]
[323189291,1713796249804,-2501.63,0.00013698,2]
[323189292,1713796249813,-712.84,0.00013698,2]
[323189293,1713796249822,-500.0,0.00013698,2]
[323189294,1713796249831,-7508.93,0.00013698,2]
[323189295,1713796249840,-15886.82,0.00013698,2]
[323189296,1713796249849,-530.96,0.00013698,2]
[323189297,1713796249859,-1270.12,0.00013698,2]
[323189298,1713796249867,-551.35,0.00013698,2]
[323189299,1713796249877,-2592.73,0.00013698,2]
[323189300,1713796249886,-6157.1,0.00013698,2]
[323189301,1713796249896,-5581.03,0.00013698,2]
[323189302,1713796249905,-500.0,0.00013698,2]
[323189303,1713796249914,-500.0,0.00013698,2]
[323189304,1713796249924,-500.0,0.00013698,2]
[323189305,1713796249933,-730.52,0.00013698,2]
[323189306,1713796249943,-8949.16,0.00013698,2]
[323189307,1713796249952,-500.0,0.00013698,2]
[323189308,1713796249962,-500.0,0.00013698,2]
[323189309,1713796249972,-61867.56,0.00013698,2]
[323189310,1713796249982,-5083.11,0.00013698,2]
[323189311,1713796249991,-500.0,0.00013698,2]
[323189312,1713796250000,-2369.52,0.00013698,2]
[323189313,1713796250009,-500.0,0.00013698,2]
[323189314,1713796250019,-2903.41,0.00013698,2]
[323189315,1713796250028,-500.0,0.00013698,2]
[323189316,1713796250038,-500.0,0.00013698,2]
[323189317,1713796250047,-500.0,0.00013698,2]
[323189318,1713796250057,-660.62,0.00013698,2]
[323189319,1713796250066,-13301.43,0.00013698,2]
[323189320,1713796250077,-14751.79,0.00013698,2]
[323189321,1713796250087,-11464.91,0.00013698,2]
[323189322,1713796250096,-500.0,0.00013698,2]
[323189323,1713796250106,-500.0,0.00013698,2]
[323189324,1713796250115,-2330.34,0.00013698,2]
[323189325,1713796250125,-12988.41,0.00013698,2]
[323189326,1713796250135,-500.0,0.00013698,2]
[323189327,1713796250144,-946.62,0.00013698,2]
[323189328,1713796250153,-500.0,0.00013698,2]
[323189329,1713796250162,-500.0,0.00013698,2]
[323189330,1713796250171,-1931.88,0.00013698,2]
[323189331,1713796250181,-500.0,0.00013698,2]
[323189332,1713796250191,-500.0,0.00013698,2]
[323189333,1713796250202,-500.0,0.00013698,2]
[323189334,1713796250211,-500.0,0.00013698,2]
[323189335,1713796250220,-3468.56,0.00013698,2]
[323189336,1713796250229,-2296.12,0.00013698,2]
[323189337,1713796250238,-7323.07,0.00013698,2]
[323189338,1713796250247,-5309.11,0.00013698,2]
[323189339,1713796250257,-2471.25,0.00013698,2]
[323189340,1713796250266,-1189.43,0.00013698,2]
[323189341,1713796250276,-3047.33,0.00013698,2]
[323189342,1713796250286,-2312.64,0.00013698,2]
[323189343,1713796250295,-500.0,0.00013698,2]
[323189344,1713796250304,-1500.76,0.00013698,2]
[323189345,1713796250313,-4172.6,0.00013698,2]
[323189346,1713796250324,-500.0,0.00013698,2]
[323189347,1713796250333,-500.0,0.00013698,2]
[323189348,1713796250342,-8934.54,0.00013698,2]
[323189349,1713796250351,-500.0,0.00013698,2]
[323189350,1713796250361,-1929.45,0.00013698,2]
[323189351,1713796250370,-651.27,0.00013698,2]
[323189352,1713796250379,-834.59,0.00013698,2]
[323189353,1713796250388,-1254.05,0.00013698,2]
[323189354,1713796250398,-6837.49,0.00013698,2]
[323189355,1713796250407,-1865.76,0.00013698,2]
[323189356,1713796250416,-7089.88,0.00013698,2]
[323189357,1713796250426,-692.12,0.00013698,2]
[323189358,1713796250435,-2893.29,0.00013698,2]
[323189359,1713796250444,-1569.04,0.00013698,2]
[323189360,1713796250453,-500.0,0.00013698,2]
[323189361,1713796250462,-750.06,0.00013698,2]
[323189362,1713796250472,-500.0,0.00013698,2]
[323189363,1713796250481,-599.54,0.00013698,2]
[323189364,1713796250491,-931.31,0.00013698,2]
[323189365,1713796250500,-4167.66,0.00013698,2]
[323189366,1713796250509,-4331.38,0.00013698,2]
[323189367,1713796250518,-868.28,0.00013698,2]
[323189368,1713796250528,-951.63,0.00013698,2]
[323189369,1713796250538,-6459.82,0.00013698,2]
[323189370,1713796250547,-5191.9,0.00013698,2]
[323189371,1713796250557,-2097.85,0.00013698,2]
[323189372,1713796250566,-2413.16,0.00013698,2]
[323189373,1713796250577,-541.14,0.00013698,2]
[323189374,1713796250587,-1959.49,0.00013698,2]
[323189375,1713796250596,-5277.08,0.00013698,2]
[323189376,1713796250606,-500.0,0.00013698,2]
[323189377,1713796250615,-500.0,0.00013698,2]
[323189378,1713796250625,-852.72,0.00013698,2]
[323189379,1713796250634,-601.01,0.00013698,2]
[323189380,1713796250644,-2956.79,0.00013698,2]
[323189381,1713796250653,-4893.9,0.00013698,2]
[323189382,1713796250663,-1264.6,0.00013698,2]
[323189383,1713796250672,-500.0,0.00013698,2]
[323189384,1713796250681,-683.14,0.00013698,2]
[323189385,1713796250690,-1461.93,0.00013698,2]
[323189386,1713796250700,-500.0,0.00013698,2]
[323189387,1713796250710,-2544.73,0.00013698,2]
[323189388,1713796250720,-500.0,0.00013698,2]
[323189389,1713796250730,-9253.52,0.00013698,2]
[323189390,1713796250739,-500.0,0.00013698,2]
[323189391,1713796250749,-1864.87,0.00013698,2]
[323189392,1713796250759,-725.14,0.00013698,2]
[323189393,1713796250768,-500.0,0.00013698,2]
[323189394,1713796250777,-500.0,0.00013698,2]
[323189395,1713796250789,-500.0,0.00013698,2]
[323189396,1713796250798,-1166.53,0.00013698,2]
[323189397,1713796250807,-500.0,0.00013698,2]
[323189398,1713796250816,-500.0,0.00013698,2]
[323189399,1713796250826,-500.0,0.00013698,2]
[323189400,1713796250836,-500.0,0.00013698,2]
[323189401,1713796250845,-10992.61,0.00013698,2]
[323189402,1713796250854,-500.0,0.00013698,2]
[323189403,1713796250864,-2659.2,0.00013698,2]
[323189404,1713796250873,-4248.38,0.00013698,2]
[323189405,1713796250883,-1750.29,0.00013698,2]
[323189406,1713796250892,-1504.93,0.00013698,2]
[323189407,1713796250901,-500.0,0.00013698,2]
[323189408,1713796250911,-500.0,0.00013698,2]
[323189409,1713796250920,-7514.88,0.00013698,2]
[323189410,1713796250930,-500.0,0.00013698,2]
[323189411,1713796250940,-7332.63,0.00013698,2]
[323189412,1713796250950,-2766.15,0.00013698,2]
[323189413,1713796250959,-500.0,0.00013698,2]
[323189414,1713796250968,-3865.83,0.00013698,2]
[323189415,1713796250977,-3295.44,0.00013698,2]
[323189416,1713796250987,-582.27,0.00013698,2]
[323189417,1713796250997,-500.0,0.00013698,2]
[323189418,1713796251006,-500.0,0.00013698,2]
[323189419,1713796251015,-2472.93,0.00013698,2]
[323189420,1713796251025,-740.41,0.00013698,2]
[323189421,1713796251034,-2415.0,0.00013698,2]
[323189422,1713796251044,-539.56,0.00013698,2]
[323189423,1713796251054,-500.0,0.00013698,2]
[323189424,1713796251063,-337.37597639,0.00013698,2]
[323189425,1713796251073,-500.0,0.00013698,2]
[323189426,1713796251083,-14120.56,0.00013698,2]
[323189427,1713796251094,-2043.64,0.00013698,2]
[323189428,1713796251104,-8677.17,0.00013698,2]
[323189429,1713796251113,-7943.38,0.00013698,2]
[323189430,1713796251123,-500.0,0.00013698,2]
[323189431,1713796251133,-500.0,0.00013698,2]
[323189432,1713796251142,-660.84,0.00013698,2]
[323189433,1713796251152,-500.0,0.00013698,2]
[323189434,1713796251161,-794.36,0.00013698,2]
[323189435,1713796251171,-500.0,0.00013698,2]
[323189436,1713796251180,-500.0,0.00013698,2]
[323189437,1713796251190,-2064.24,0.00013698,2]
[323189438,1713796251203,-1864.64,0.00013698,2]
[323189439,1713796251213,-5806.66,0.00013698,2]
[323189440,1713796251223,-2216.56,0.00013698,2]
[323189441,1713796251232,-9254.43,0.00013698,2]
[323189442,1713796251243,-500.0,0.00013698,2]
[323189443,1713796251253,-514.94,0.00013698,2]
[323189444,1713796251263,-2018.06,0.00013698,2]
[323189445,1713796251273,-1412.7,0.00013698,2]
[323189446,1713796251283,-500.0,0.00013698,2]
[323189447,1713796251293,-500.0,0.00013698,2]
[323189448,1713796251303,-1725.24,0.00013698,2]
[323189449,1713796251312,-500.0,0.00013698,2]
[323189450,1713796251322,-3237.33,0.00013698,2]
[323189451,1713796251332,-4444.78,0.00013698,2]
[323189452,1713796251341,-2886.71,0.00013698,2]
[323189453,1713796251351,-430.53019888,0.00013698,2]
[323189454,1713796251361,-5066.79,0.00013698,2]
[323189455,1713796251372,-500.0,0.00013698,2]
[323189456,1713796251382,-4096.74,0.00013698,2]
[323189457,1713796251392,-811.45,0.00013698,2]
[323189458,1713796251402,-1792.61,0.00013698,2]